Cogmind - Beta 10.2 @@@ ROGUE MODE // 2021.05.12 @ 04:33:35 Player: Raibnyu Result: Destroyed by Grenadier 3a with Mini Grenade Launcher Performance ------------- Evolutions (2) 1000 Regions Visited (6) 1200 Robots Destroyed (45) 225 Value Destroyed (1578) 1578 Prototype IDs (5) 100 Alien Tech Used (0) 0 Bonus (812) 812 TOTAL SCORE: 4915 Bonus ------- Follower Combat Kills 112 Entered Garrisons 200 Used RIF Installer 500 Cogmind --------- Core Integrity 0/550 Matter 283/300 Energy 160/160 System Corruption 12% Temperature Cool (0) Movement Walking (180) Ox2 Location -8/Garrison Parts ------- > --- POWER (1) -------- Light Nuclear Core > --- PROPULSION (3) --- Aluminum Leg Carbon-fiber Leg Combat Airjet > --- UTILITY (5) ------ Large Storage Unit High-capacity Storage Unit Relay Coupler [Grunt] (14) Relay Coupler [Demolisher] (8) > --- WEAPON (2) ------- Gauss Rifle Assault Cannon > --- INVENTORY (18) --- Light Ion Engine Improved Ion Engine Improved Heat Sink Medium Storage Unit High-capacity Matter Pod (200) Light Armor Plating Hardened Medium Armor Plating Relay Coupler [NC] (22) Relay Coupler [NC] (28) Relay Coupler [NC] (26) Relay Coupler [NC] (23) Relay Coupler [Swarmer] (33) Relay Coupler [Grunt] (21) Relay Coupler [Hunter] (16) Assault Cannon Assault Cannon Improved Datajack Katana Peak State ------------ > --- POWER ------------ Ion Engine > --- PROPULSION ------- Hover Unit Combat Airjet Combat Airjet > --- UTILITY ---------- High-capacity Storage Unit Advanced Visual Processing Unit Experimental Sensor Array Hacking Suite Hacking Suite > --- WEAPON ----------- EM Pulse Cannon Bore Cannon > --- INVENTORY -------- Light Ion Engine Improved Ion Engine Light Nuclear Core Medium Storage Unit Large Storage Unit High-capacity Matter Pod Weight Redist. System Terrain Scanner Heavy Assault Rifle Grenade Launcher Improved Datajack Heavy Hammer [Rating: 38] Favorites ----------- Power Ion Engine Engine Ion Engine Power Core Light Nuclear Core Propulsion Combat Airjet Leg Carbon-fiber Leg Wheel Wheel Hover Unit Combat Airjet Flight Unit Flight Unit Utility Large Storage Unit Device Experimental Sensor Array Storage Large Storage Unit Processor Advanced Visual Processing Unit Hackware Hacking Suite Weapon Grenade Launcher Energy Gun Spread Laser Energy Cannon EM Pulse Cannon Ballistic Gun Heavy Assault Rifle Ballistic Cannon Bore Cannon Launcher Grenade Launcher Impact Weapon Great Maul Slashing Weapon Katana Special Melee Weapon Improved Datajack Build | -11 -10 -10 -10 -9 -8 -8 ------- Run | Scr Mat Min Exi Min Mat Gar Slots Evolved 4 | . . . . . 4 . Power . | . . . . . . . Propulsion 1 | . . . . . 1 . Utility 3 | . . . . . 3 . Weapon . | . . . . . . . Parts Attached 67 | 6 11 6 1 1 23 19 Power 6 | 1 . 1 . 1 2 1 Engine 4 | 1 . 1 . 1 1 . Core 2 | . . . . . 1 1 Reactor . | . . . . . . . Propulsion 15 | 2 1 3 . . 5 4 Treads . | . . . . . . . Leg 7 | . . . . . 4 3 Wheel 2 | 2 . . . . . . Hover 5 | . 1 2 . . 1 1 Flight 1 | . . 1 . . . . Utility 15 | 1 3 . 1 . 6 4 Device 3 | . . . . . 3 . Storage 7 | 1 3 . 1 . . 2 Processor 1 | . . . . . 1 . Hackware 4 | . . . . . 2 2 Protection . | . . . . . . . Artifact . | . . . . . . . Weapon 31 | 2 7 2 . . 10 10 Energy Gun 6 | 2 4 . . . . . Energy Cannon 4 | . . . . . 3 1 Ballistic Gun 4 | . 1 1 . . . 2 Ballistic Cannon 3 | . . . . . 2 1 Launcher 6 | . 2 1 . . 1 2 Special Weapon . | . . . . . . . Impact Weapon 2 | . . . . . 2 . Slashing Weapon 4 | . . . . . 2 2 Piercing Weapon . | . . . . . . . Special Melee Weapon 2 | . . . . . . 2 Unidentified Prototypes 1 | . . . . . 1 . Parts Lost 25 | . 3 3 . . 10 9 Power 1 | . . . . . 1 . Propulsion 8 | . 1 1 . . 2 4 Utility 6 | . . . . . 4 2 Weapon 10 | . 2 2 . . 3 3 Highest Loss Streak 5 | . 1 2 . . 5 5 Average Slot Usage (%) 95 | . 96 97 100 100 92 87 Engine 10 | . 14 14 14 14 7 3 Core 1 | . . . . . . 5 Leg 4 | . . . . . 3 23 Wheel 6 | . 21 12 . . . . Hover 14 | . 6 3 28 28 22 3 Flight 1 | . . 11 . . . . Device 2 | . . . . . 8 . Storage 21 | . 27 28 28 28 11 16 Hackware 7 | . . . . . 18 21 Energy Gun 3 | . 18 . . . . . Energy Cannon 1 | . . . . . 4 1 Ballistic Gun 8 | . 7 13 14 14 2 4 Ballistic Cannon 1 | . . . . . 4 1 Launcher 6 | . . 12 14 14 2 . Slashing Weapon 1 | . . . . . 1 4 Naked Turns . | . . . . . . . Heaviest Build 63 | 12 43 45 61 61 60 63 Greatest Support 56 | 26 26 44 44 44 56 40 Greatest Overweight (x) 4 | 1 4 4 1 1 1 2 Average Overweight (x) 1 | . 2 3 1 1 . 1 Largest Inventory Capacity 18 | 6 16 16 18 18 18 18 Average Capacity 15 | 5 13 16 16 18 13 16 Most Carried 18 | 5 16 16 16 18 17 18 Average Carried 14 | 2 12 15 15 17 12 15 Final Capacity 18 | 6 16 16 18 18 12 18 Final Carried 18 | 5 16 15 16 18 12 18 Class Distribution -------------------- 60% | Scavenger-Mutant 33% | Mutant 5% | Bothacker-Mutant Dominant Class ---------------- Mutant | -10/Materials Mutant | -10/Mines Scavenger-Mutant | -10/Exiles Scavenger-Mutant | -9/Mines Scavenger-Mutant | -8/Materials Scavenger-Mutant | -8/Garrison Resources | -11 -10 -10 -10 -9 -8 -8 ----------- Run | Scr Mat Min Exi Min Mat Gar Matter Collected 1397 | 184 211 140 . 81 386 395 Remotely . | . . . . . . . Salvage Created 1147 | . 410 101 . 102 320 214 Parts 93 | . 35 15 . 9 20 14 Haulers Intercepted 1 | . 1 . . . . . Recyclers Shooed 1 | . 1 . . . . . Parts Field Recycled . | . . . . . . . Retrieved Matter . | . . . . . . . Parts Self-Destructed . | . . . . . . . Prevented . | . . . . . . . Kills | -11 -10 -10 -10 -9 -8 -8 ------- Run | Scr Mat Min Exi Min Mat Gar Combat Hostiles Destroyed 31 | . 9 3 . 5 9 5 Melee 2 | . . . . . 1 1 Guns 10 | . 7 . . 1 . 2 Cannons 6 | . . . . . 5 1 AOE 13 | . 2 3 . 4 3 1 Classes Destroyed 13 | . 6 3 . 2 2 . Worker 2 | . . 1 . . 1 . Builder 2 | . . 2 . . . . Tunneler 1 | . . . . 1 . . Hauler 1 | . 1 . . . . . Recycler 1 | . 1 . . . . . Operator 3 | . 3 . . . . . Watcher 4 | . 3 . . . 1 . Swarmer 9 | . 3 . . 3 3 . Grunt 11 | . 6 1 . 1 3 . Brawler 2 | . . . . 1 . 1 Duelist 2 | . . . . . 1 1 Sentry 5 | . . 2 . . 1 2 Hunter 2 | . . . . . 1 1 Best Kill Streak 6 | . 3 6 . 4 3 2 Combat Bots Only 3 | . 3 2 . 3 3 2 Max Kills in Single Turn 3 | . 2 2 . 2 3 1 Gunslinging . | . . . . . . . Exploded 2 | . 2 1 . 1 2 1 Melee 1 | . . . . . 1 1 Uniques/NPCs Destroyed . | . . . . . . . Combat | -11 -10 -10 -10 -9 -8 -8 -------- Run | Scr Mat Min Exi Min Mat Gar Damage Taken 3222 | . 346 272 . 131 1133 1340 Core 744 | . 86 73 . 29 218 338 Absorbed by Shields . | . . . . . . . Core Remaining (%) 62 | 100 . . . 24 . . Volleys Fired 136 | . 49 9 . 8 44 26 Largest 2 | . 2 2 . 2 2 2 Hottest 132 | . 130 50 . 53 132 90 Shots Fired 207 | . 94 13 . 12 58 30 Gun 129 | . 93 5 . 8 5 18 Cannon 56 | . . . . . 48 8 Launcher 22 | . 1 8 . 4 5 4 Special . | . . . . . . . Kinetic 97 | . 23 5 . 8 42 19 Thermal 86 | . 70 . . . 9 7 Explosive 22 | . 1 8 . 4 5 4 Electromagnetic 2 | . . . . . 2 . Robot Hit Streak 15 | . 15 5 . 7 4 8 Robot Miss Streak 14 | . 14 1 . 2 3 1 Penetration Max 1 | . . . . . . 1 Secondary Targets . | . . . . . . . Shots Hit Robots 141 | . 76 8 . 8 24 25 Core Hits 112 | . 57 15 . 8 17 15 Critical Hits 6 | . . . . . 6 . Critical Kills 1 | . . . . . 1 . Critical Parts Destroyed 5 | . . . . . 5 . Melee Attacks 32 | . . . . . 22 10 Impact 18 | . . . . . 18 . Slashing 7 | . . . . . 4 3 Piercing . | . . . . . . . Sneak Attacks 2 | . . . . . . 2 Combat Hostiles 2 | . . . . . . 2 Follow-up Attacks . | . . . . . . . Damage Inflicted 2680 | . 720 388 . 294 858 420 Guns 992 | . 635 7 . 77 49 224 Cannons 543 | . . . . . 449 94 Explosions 1049 | . 85 381 . 217 292 74 Melee 96 | . . . . . 68 28 Ramming . | . . . . . . . Kinetic 652 | . 98 7 . 77 246 224 Thermal 828 | . 537 . . . 197 94 Explosive 1049 | . 85 381 . 217 292 74 Electromagnetic 55 | . . . . . 55 . Impact . | . . . . . . . Slashing 96 | . . . . . 68 28 Piercing . | . . . . . . . Highest Corruption 12 | . . . . . 7 12 Average Corruption 8 | . . . . . 6 8 Corruption Purged . | . . . . . . . Effects 38 | . . . . . 10 28 Message Errors 6 | . . . . . 2 4 Matter Fused 5 | . . . . . 1 4 Heat Flow Errors 2 | . . . . . . 2 Energy Discharges 5 | . . . . . 1 4 Data Loss (minor) 7 | . . . . . 3 4 Data Loss (major) 1 | . . . . . . 1 Misfires 2 | . . . . . 1 1 Misdirections 1 | . . . . . . 1 Targeting Errors 8 | . . . . . 2 6 Weapon Failures 1 | . . . . . . 1 Overload Shots . | . . . . . . . Overflow Damage 55 | . . 22 . . 33 . Projectiles . | . . . . . . . Explosions 55 | . . 22 . . 33 . Melee . | . . . . . . . Knockbacks 3 | . . . . . 3 . Impact . | . . . . . . . Kinetic 3 | . . . . . 3 . Secondary . | . . . . . . . Self-Inflicted Damage 118 | . 21 . . 66 26 5 Shots 7 | . 1 . . 3 2 1 Rammed . | . . . . . . . Targets Rammed . | . . . . . . . Kicked . | . . . . . . . Crushed . | . . . . . . . Highest Temperature 529 | . 376 28 . . 529 240 Average Temperature 122 | . 99 9 . . 195 59 Received Heat Transfer 687 | . 108 72 . 12 324 171 Effects 12 | . . . . . 12 . Shutdowns 1 | . . . . . 1 . Interference 1 | . . . . . 1 . Matter Decay 4 | . . . . . 4 . Short Circuit 3 | . . . . . 3 . Damage (minor) 2 | . . . . . 2 . Damage (major) 1 | . . . . . 1 . Siege Activations . | . . . . . . . Robots Corrupted . | . . . . . . . Combat Hostiles . | . . . . . . . Parts Fried . | . . . . . . . Impact Corruptions . | . . . . . . . Robots Melted . | . . . . . . . Combat Hostiles . | . . . . . . . Parts Melted . | . . . . . . . Heat Transferred 1265 | . 821 . . . 296 148 Parts Sabotaged . | . . . . . . . Parts Stolen . | . . . . . . . Parts Stripped . | . . . . . . . Power Chain Reactions . | . . . . . . . Missiles Intercepted . | . . . . . . . Alert | -11 -10 -10 -10 -9 -8 -8 ------- Run | Scr Mat Min Exi Min Mat Gar Peak Influence 275 | . 242 82 . 75 236 275 Initial 48 | . . 7 . . 29 48 Average 86 | . 102 30 . 38 79 182 Maximum Alert Level 1 | . 1 . . . 1 1 Low Security (%) 87 | 100 93 100 . 100 78 70 Level 1 12 | . 6 . . . 21 29 Level 2 . | . . . . . . . Level 3 . | . . . . . . . Level 4 . | . . . . . . . Level 5 . | . . . . . . . High Security . | . . . . . . . Max Security . | . . . . . . . Squads Dispatched 6 | . 3 . . . 3 . Investigation 2 | . . . . . 2 . Extermination . | . . . . . . . Reinforcement 4 | . 3 . . . 1 . Assault . | . . . . . . . Garrison . | . . . . . . . Intercept . | . . . . . . . Construction Impeded 1 | . . . . . 1 . Haulers Reinforced . | . . . . . . . Stealth | -11 -10 -10 -10 -9 -8 -8 --------- Run | Scr Mat Min Exi Min Mat Gar Distress Signals 1 | . . . . . 1 . Communications Jammed . | . . . . . . . Distress Signals . | . . . . . . . Times Spotted 70 | . 26 4 . 5 17 18 Peak Tracking Total 6 | . 4 4 . 2 3 6 Tactical Retreats 4 | . . 1 . . 3 . Traps | -11 -10 -10 -10 -9 -8 -8 ------- Run | Scr Mat Min Exi Min Mat Gar Traps Triggered 4 | . 1 . . . . 3 Indirectly . | . . . . . . . Trap Hack Attempts . | . . . . . . . Triggered . | . . . . . . . Disarmed . | . . . . . . . Reprogrammed 4 | . . . . . 4 . Reused 1 | . . . . . 1 . Traps Extracted . | . . . . . . . Installed . | . . . . . . . Triggered 1 | . . . . . 1 . Machines | -11 -10 -10 -10 -9 -8 -8 ---------- Run | Scr Mat Min Exi Min Mat Gar Machines Disabled 2 | . . . . . . 2 Max in Single Turn 1 | . . . . . . 1 Garrison Relay 2 | . . . . . . 2 Machines Sabotaged . | . . . . . . . Garrisons Compromised . | . . . . . . . Overloaded Fab Kills . | . . . . . . . Fab Network Shutdowns . | . . . . . . . Hacking | -11 -10 -10 -10 -9 -8 -8 --------- Run | Scr Mat Min Exi Min Mat Gar Machines Accessed 14 | . 5 1 . . 8 . Terminals 11 | . 4 1 . . 6 . Fabricators . | . . . . . . . Repair Stations . | . . . . . . . Recycling Units 1 | . 1 . . . . . Scanalyzers 1 | . . . . . 1 . Garrison Access 1 | . . . . . 1 . Total Hacks 48 | . 13 2 . . 33 . Successful 36 | . 8 1 . . 27 . Failed 11 | . 5 1 . . 5 . Catastrophic . | . . . . . . . Database Lockouts 1 | . . . . . 1 . Manual . | . . . . . . . Terminals 37 | . 11 2 . . 24 . Fabricators . | . . . . . . . Repair Stations . | . . . . . . . Recycling Units 2 | . 2 . . . . . Scanalyzers 8 | . . . . . 8 . Garrison Access 1 | . . . . . 1 . Terminal Hacks 27 | . 8 1 . . 18 . Record 10 | . 1 . . . 9 . Prototype ID Bank 2 | . 1 . . . 1 . Terminal Index 1 | . . . . . 1 . Alert Level 2 | . 1 . . . 1 . Locate Traps 3 | . 1 . . . 2 . Reprogram Traps 1 | . . . . . 1 . Dispatch Records 2 | . 1 1 . . . . Maintenance Status 2 | . 1 . . . 1 . Patrol Status 1 | . 1 . . . . . Recall Investigation 1 | . . . . . 1 . Hauler Manifests 2 | . 1 . . . 1 . Fabricator Hacks . | . . . . . . . Repair Station Hacks . | . . . . . . . Recycling Unit Hacks . | . . . . . . . Scanalyzer 8 | . . . . . 8 . Insert Component 4 | . . . . . 4 . Analyze 4 | . . . . . 4 . Garrison Access Hacks 1 | . . . . . 1 . Unlock Access 1 | . . . . . 1 . Unauthorized Hacks . | . . . . . . . Terminals . | . . . . . . . Fabricators . | . . . . . . . Repair Stations . | . . . . . . . Recycling Units . | . . . . . . . Scanalyzers . | . . . . . . . Garrison Access . | . . . . . . . Data Cores Recovered . | . . . . . . . Used . | . . . . . . . Hacking Detections 10 | . 3 1 . . 6 . Full Trace Events 1 | . . . . . 1 . Feedback Events . | . . . . . . . Feedback Blocked . | . . . . . . . Robot Schematics Acquired . | . . . . . . . Robots Built . | . . . . . . . Matter . | . . . . . . . Time . | . . . . . . . Total Robot Build Rating . | . . . . . . . Part Schematics Acquired 4 | . . . . . 4 . Parts Built . | . . . . . . . Matter . | . . . . . . . Time . | . . . . . . . Total Part Build Rating . | . . . . . . . Parts Repaired . | . . . . . . . Time . | . . . . . . . Parts Recycled . | . . . . . . . Recycled Matter . | . . . . . . . Retrieved Matter . | . . . . . . . Retrieved Components . | . . . . . . . Parts Scanalyzed 4 | . . . . . 4 . Part Schematics Acquired 4 | . . . . . 4 . Parts Damaged . | . . . . . . . Bothacking | -11 -10 -10 -10 -9 -8 -8 ------------ Run | Scr Mat Min Exi Min Mat Gar Used RIF Installer 1 | . . . . . . 1 Robots Hacked 3 | . . . . . . 3 Non-combat . | . . . . . . . Combat 3 | . . . . . . 3 Robot Hacks Applied 3 | . . . . . . 3 overwrite_iff 2 | . . . . . . 2 formatsys_high 1 | . . . . . . 1 Relay Couplers Released 9 | . . . . . . 9 Machine Destruction 9 | . . . . . . 9 Attached 2 | . . . . . . 2 Robots Rewired . | . . . . . . . Allies Hacked . | . . . . . . . Hacks Repelled . | . . . . . . . Allies | -11 -10 -10 -10 -9 -8 -8 -------- Run | Scr Mat Min Exi Min Mat Gar Total Allies 5 | . . 2 . . . 3 Largest Group 2 | . . 2 . . . 1 Highest-Rated Group 41 | . . 41 . . . 34 Highest-Rated Ally 34 | . . 31 . . . 34 Total Orders . | . . . . . . . Ally Attacks 14 | . . 1 . . . 13 Total Damage 434 | . . 20 . . . 414 Kills 7 | . . . . . . 7 Allies Corrupted . | . . . . . . . Allies Melted . | . . . . . . . Intel | -11 -10 -10 -10 -9 -8 -8 ------- Run | Scr Mat Min Exi Min Mat Gar Robot Analysis Total . | . . . . . . . Derelict Logs Recovered 2 | . . 1 . 1 . . Drone Launches . | . . . . . . . Drone Recoveries . | . . . . . . . Exploration | -11 -10 -10 -10 -9 -8 -8 ------------- Run | Scr Mat Min Exi Min Mat Gar Turns Passed 4443 | 82 862 630 464 663 1017 725 Spaces Moved 2826 | 75 577 471 317 430 588 368 Core 15 | 15 . . . . . . Treads . | . . . . . . . Legs 435 | . . . . . 67 368 Wheels 1061 | 60 577 424 . . . . Hover 1315 | . . 47 317 430 521 . Flight . | . . . . . . . Fastest Speed 50 | 50 90 110 146 146 65 150 Average Speed 128 | 86 106 121 146 146 117 159 Slowest Speed 220 | 100 120 220 146 146 150 180 Overloaded Moves . | . . . . . . . Propulsion Burnouts . | . . . . . . . Robots Hopped . | . . . . . . . Cave-ins Triggered 3 | . . . . . 2 1 Exploration Rate (%) 56 | 4 75 86 62 85 45 40 Regions Visited 6 Branch Regions 3 Pre-discovered Areas 2 | . . 1 . 1 . . Known Exits Taken 1 | . . . . . 1 . Unknown Exits Taken 5 | 1 1 1 1 1 . . Scrap Searched 4 | . . 1 . 3 . . Spaces Dug 28 | . . . . . 28 . Terrain Destroyed 177 | . 4 48 . 36 81 8 Melee 16 | . . . . . 16 . Projectile 26 | . . . . . 26 . AOE 135 | . 4 48 . 36 39 8 Terrain Rammed . | . . . . . . . Walls Destroyed . | . . . . . . . Machines Disabled . | . . . . . . . Actions | -11 -10 -10 -10 -9 -8 -8 --------- Run | Scr Mat Min Exi Min Mat Gar Total 3412 | 91 743 519 318 455 818 468 Wait 210 | . 55 20 . 5 114 16 Move 2818 | 74 576 470 316 429 585 368 Hop . | . . . . . . . Pick Up 102 | 11 34 8 1 7 19 22 Fast Attach . | . . . . . . . Attach 44 | 6 7 5 . . 14 12 Detach 1 | . . . . . . 1 Swap 23 | . 4 1 1 1 9 7 Drop 39 | . 18 6 . 5 9 1 Fire 136 | . 49 9 . 8 44 26 Melee 32 | . . . . . 22 10 Ram . | . . . . . . . Kick . | . . . . . . . Crush . | . . . . . . . Escape Stasis 7 | . . . . . 2 5 Rewire . | . . . . . . . Trap . | . . . . . . . Miscellaneous . | . . . . . . . Route ------- -11/Scrapyard -10/Materials (discovered 3 exits: [*Mat x2] / *Min) -10/Mines (discovered 3 exits: [*Mat x2] / *Exi) -10/Exiles (discovered 2 exits: [*Min x2]) -9/Mines -8/Materials -8/Garrison (discovered 1 exit: [*Mat]) History --------- Turn | Location | Event 6 | -11/Scrapyard | Discovered new exit (range 15) 83 | -11/Scrapyard | Entered Materials 317 | -10/Materials | Build established: Mutant 429 | -10/Materials | Discovered new exit (range 5) 580 | -10/Materials | Discovered new exit (range 13) 874 | -10/Materials | Discovered new exit (range 16) 945 | -10/Materials | Entered Mines 960 | -10/Mines | Met a Derelict bent on vengeance 964 | -10/Mines | Core integrity fell below 50% 1017 | -10/Mines | Discovered new exit (range 10) 1148 | -10/Mines | Found a hidden stash of uninstalled traps 1183 | -10/Mines | Assembled infested the area 1249 | -10/Mines | Discovered new exit (range 11) 1253 | -10/Mines | Learned location of Zion (-6) 1273 | -10/Mines | Found a damaged Exp. Sensor Array with a note attached 1276 | -10/Mines | Found Prototype Device 1567 | -10/Mines | Deemed a non-threat by the Exiles lab entrance 1569 | -10/Mines | Discovered new exit (range 5) 1575 | -10/Mines | Entered Exiles 1599 | -10/Exiles | Discovered new exit (range 15) 1616 | -10/Exiles | Met 8R-AWN 1641 | -10/Exiles | Met EX-HEX 1688 | -10/Exiles | Met EX-BIN 1797 | -10/Exiles | Met EX-DEC 1798 | -10/Exiles | Build established: Scavenger-Mutant 2023 | -10/Exiles | Discovered new exit (range 14) 2039 | -10/Exiles | Entered Mines 2046 | -9/Mines | Received a Rocket Launcher from a helpful Derelict 2531 | -9/Mines | A weapon hastily lodged in a ceiling crevice suddenly fell to the ground 2683 | -9/Mines | Discovered new exit (range 15) 2702 | -9/Mines | Entered Materials 2702 | -8/Materials | Evolved 4 slots: Propulsion x1, Utility x3 2704 | -8/Materials | Identified Exp. Sensor Array 3146 | -8/Materials | Central database locked down 3342 | -8/Materials | Crushed by falling debris 3346 | -8/Materials | Crushed by falling debris 3377 | -8/Materials | Lost 4 parts (2u2w) 3577 | -8/Materials | Lost 5 parts (1p1n2u1w) 3715 | -8/Materials | Identified exit to Garrison 3719 | -8/Materials | Entered Garrison 3727 | -8/Garrison | Installed Relay Interface Framework 3768 | -8/Garrison | Triggered checkpoint 3805 | -8/Garrison | Garrison Relay disabled 3900 | -8/Garrison | Triggered checkpoint 3954 | -8/Garrison | Core integrity fell below 50% 3988 | -8/Garrison | Lost 5 parts (2n3w) 4088 | -8/Garrison | Triggered checkpoint 4161 | -8/Garrison | Discovered new exit (range 13) 4196 | -8/Garrison | Crushed by falling debris 4196 | -8/Garrison | Core integrity fell below 20% 4196 | -8/Garrison | System corruption reached 10% 4220 | -8/Garrison | Triggered checkpoint 4227 | -8/Garrison | Lost 4 parts (2n2u) 4235 | -8/Garrison | Garrison Relay disabled 4438 | -8/Garrison | Triggered checkpoint 4444 | -8/Garrison | Destroyed by Grenadier 3a with Mini Grenade Launcher Last Messages --------------- 04297_ Acquired Assault Cannon. 04303_ System corrupted: Matter fused (-6). 04318_ Y-45 Defender destroyed. 04325_ The unstable cave ceiling collapses. 04326_ System corrupted: Component data lost. 04329_ Acquired 33 matter. 04332_ The unstable cave ceiling collapses. 04332_ Lgt. Treads crushed. 04347_ The unstable cave ceiling collapses. 04357_ Acquired Assault Cannon. 04366_ The unstable cave ceiling collapses. 04389_ Lgt. Treads crushed. 04396_ System corrupted: Energy discharge (-57). 04412_ System corrupted: FCS attempts to trigger Assault Cannon. 04412_ System corrupted: Assault Cannon misfires. 04438_ Beams of light sweep through the air. An alarm sounds. 04438_ C-30 ARC bursts open, deploying its payload. 04438_ S-10 Pest unfolds itself. 04440_ System corrupted: Component data lost. 04444_ S-10 Pest destroyed. Map ----- +----------------------------------------------------+ | ??????????????????# "#??????????????????????# # | | ??????????????????# "#??????????????????????# # | | ??????????????????# #"#??????????????????????# # | | ??????????????????# ###???#####??????????????# # | | ??????????????????# #?????#] ]#??????????????# # | | ??????????????????# #####?# ]#??????????????# # | | ??????????????????# #?# ]#????????####### | | ????????????????### #?# ]#????????# # | | ??????????####### ### #### ##????????# ##### # | | ??????????# ! ! #?????????# #???# # | | ??????????# # # #######?????????# #???# # | | ??????????# # #### # #??????????????# #???# # | | ??????????# = # #??????????????# #???# # | | ??????????# ## ### #???????????# #???# # | | # < ######## #???????????# #???# # | | # # ! # ## #???????????# #???# # | | # ## # #??????????????# #???# # | | ############# # # #??????????????# #???# # | | ????????????# ### ######??????????????# #???# # | | ????????????# #?###???????????????????# #???# # | | ????????????# #????????????????????#### ##### # | | ????????????# #????????????????????# # # | | ????????????# #?????????????######?#=######## # | | ????????????# #?????????????# #?#*#??????# ^# | | ????????????# #????????###### ###"######## # | | ????????????# ##########@ % ! # | | ????????????# d # | | ????????????# = # | | ????????????############ [ # ## / ########### | | ???????????????????????##%* ## ##= =###???????? | | ??????????????????????? = #???????? | | ??????????????????????#"%= ! *" #???????? | | ??????????????????????#%*% %"#???????? | | ??????????????????????#" = " #???????? | | ??????????????????????### ## ## ###???????? | | ????????????????????????# ## ## #?????????? | | ??????????????????????? ^ ?????????? | | ?????????????????????? ? ????????? | | ????????????????????????# ^ ???????? | | ????????????????????????## ##""""###"#####??????? | | ?????????????????????????# #???????? ???????????? | | ?????????????????????????# #???????? ???????????? | | ?????????????????????????# ?????????????????????? | | ?????????????????????????? ?????????????????????? | | ?????????????????????????????????????????????????? | | ?????????????????????????????????????????????????? | | ?????????????????????????????????????????????????? | | ?????????????????????????????????????????????????? | | ?????????????????????????????????????????????????? | | ?????????????????????????????????????????????????? | +----------------------------------------------------+ Best States ------------- Heat Dissipation 31 Energy Generation 14 Energy Capacity 265 Matter Stores 300 Matter Capacity 300 Sight Range 20 Robot Scan Range 30 Terrain Scan Range 14 Terrain Scan Density 10 Additional Mass Support 6 Evasion (%) 52 Offensive Hacking 20 Relay Coupler Types 35 Relay Coupler Value 2 Item Schematics ----------------- Cmb. Airjet | -8/Materials | Scanalyzed Hrd. Medium Armor Plating | -8/Materials | Scanalyzed Lgt. Deuterium Engine | -8/Materials | Scanalyzed Lrg. Storage Unit | -8/Materials | Scanalyzed Robot Schematics ------------------ None Fabricated ------------ Nothing Alien Tech Used ----------------- None Achievements -------------- Assimilation Complete Challenges ------------ None Game ------ Seed ThunderActuatorSpear Manual? 0 Play Time 01:17:31 Cumulative 23.5 hours Start 2021.05.11 @ 23:53:26 End 2021.05.12 @ 04:33:35 Sessions 1 Manual Loads 0 Difficulty Rogue Special Mode None Game No. 15 Rogue 15 Adventurer 0 Explorer 0 Win Type - Total 0 Types 0/0/0/0/0/0/0/0/0 Lore% 22 Gallery% 28 Achievement% 19 Wizard Run 0 Options --------- ASCII 0 Keyboard 0 Movement Mouse Keybinds 0 Fullscreen 1 Font 18/SmallcapsGlow Map View 76x50 Tactical HUD 1 Map Filters NONE Filters NONE Steam 1 RUN: 2b652ee8-7d80-43f2-81a5-ec5f2334c4e7